[Event "Championship of RSO-Alania 2020"]
[Site "Vladikavkaz, Russia"]
[Date "2021.01.09"]
[Round "9.6"]
[White "Ryazanov, Nikolay"]
[Black "Bibilov, Alan"]
[Result "1/2-1/2"]
[TimeControl "90+30"]
[WhiteElo "1788"]
[BlackElo "1073"]

1. e4 {[%clk 01:30:58]} e5 {[%clk 01:30:55]} {[%emt 00:00:06]} 2. Nf3 {[%clk
01:31:22]} {[%emt 00:00:09]} Nc6 {[%clk 01:31:17]} {[%emt 00:00:05]} 3. Bc4
{[%clk 01:31:46]} {[%emt 00:00:06]} Nf6 {[%clk 01:31:20]} {[%emt 00:00:26]} 4.
d3 {[%clk 01:32:12]} {[%emt 00:00:05]} Bc5 {[%clk 01:31:04]} {[%emt 00:00:46]}
5. O-O {[%clk 01:32:28]} {[%emt 00:00:13]} O-O {[%clk 01:31:22]} {[%emt
00:00:12]} 6. Nc3 {[%clk 01:31:19]} {[%emt 00:01:40]} h6 {[%clk 01:31:17]}
{[%emt 00:00:35]} 7. h3 {[%clk 01:30:45]} {[%emt 00:01:03]} d6 {[%clk
01:31:23]} {[%emt 00:00:23]} 8. Na4 {[%clk 01:31:01]} {[%emt 00:00:14]} Bb6
{[%clk 01:30:39]} {[%emt 00:01:12]} 9. a3 {[%clk 01:30:03]} {[%emt 00:01:31]}
d5 {[%clk 01:28:36]} {[%emt 00:02:33]} 10. Nxb6 {[%clk 01:29:57]} {[%emt
00:00:36]} axb6 {[%clk 01:28:32]} {[%emt 00:00:33]} 11. exd5 {[%clk 01:30:20]}
{[%emt 00:00:07]} Nxd5 {[%clk 01:28:18]} {[%emt 00:00:44]} 12. Re1 {[%clk
01:30:32]} {[%emt 00:00:17]} Re8 {[%clk 01:26:23]} {[%emt 00:02:26]} 13. Bd2
{[%clk 01:18:57]} {[%emt 00:12:06]} Bf5 {[%clk 01:19:10]} {[%emt 00:07:41]} 14.
b4 {[%clk 01:18:15]} {[%emt 00:01:13]} Qd6 {[%clk 01:17:39]} {[%emt 00:01:59]}
15. Nh4 {[%clk 01:08:14]} {[%emt 00:10:33]} Bh7 {[%clk 01:17:15]} {[%emt
00:00:54]} 16. Qf3 {[%clk 01:07:41]} {[%emt 00:01:03]} Nd4 {[%clk 01:13:01]}
{[%emt 00:04:45]} 17. Qxd5 {[%clk 01:07:47]} {[%emt 00:00:23]} Qxd5 {[%clk
01:13:21]} {[%emt 00:00:10]} 18. Bxd5 {[%clk 01:08:08]} {[%emt 00:00:09]} Nxc2
{[%clk 01:13:32]} {[%emt 00:00:19]} 19. Bxb7 {[%clk 01:08:00]} {[%emt
00:00:38]} Ra7 {[%clk 01:13:42]} {[%emt 00:00:20]} 20. Be4 {[%clk 01:08:05]}
{[%emt 00:00:25]} Bxe4 {[%clk 01:13:23]} {[%emt 00:00:49]} 21. dxe4 {[%clk
01:08:10]} {[%emt 00:00:25]} Nxe1 {[%clk 01:13:28]} {[%emt 00:00:25]} 22. Bxe1
{[%clk 01:08:22]} {[%emt 00:00:18]} Rea8 {[%clk 01:11:06]} {[%emt 00:02:53]} 23.
Nf5 {[%clk 01:08:22]} {[%emt 00:00:30]} Rxa3 {[%clk 01:09:20]} {[%emt
00:02:16]} 24. Rxa3 {[%clk 01:08:19]} {[%emt 00:00:33]} Rxa3 {[%clk 01:09:39]}
{[%emt 00:00:10]} 25. Ne7+ {[%clk 01:08:16]} {[%emt 00:00:33]} Kf8 {[%clk
01:05:03]} {[%emt 00:05:07]} 26. Nd5 {[%clk 01:07:03]} {[%emt 00:01:43]} c5
{[%clk 01:03:55]} {[%emt 00:01:37]} 27. Kf1 {[%clk 00:58:18]} {[%emt 00:09:14]}
Ra1 {[%clk 00:59:27]} {[%emt 00:04:58]} 28. Ke2 {[%clk 00:53:50]} {[%emt
00:04:59]} cxb4 {[%clk 00:58:29]} {[%emt 00:01:28]} 29. Bxb4+ {[%clk 00:53:41]}
{[%emt 00:00:39]} Kg8 {[%clk 00:57:46]} {[%emt 00:01:12]} 30. Nxb6 {[%clk
00:53:23]} {[%emt 00:00:48]} f6 {[%clk 00:56:13]} {[%emt 00:02:03]} 31. Kd3
{[%clk 00:48:41]} {[%emt 00:05:12]} Rd1+ {[%clk 00:55:35]} {[%emt 00:01:08]} 32.
Ke3 {[%clk 00:48:32]} {[%emt 00:00:40]} Rb1 {[%clk 00:54:59]} {[%emt 00:01:05]}
33. Nd5 {[%clk 00:48:29]} {[%emt 00:00:33]} Rb3+ {[%clk 00:54:00]} {[%emt
00:01:26]} 34. Bc3 {[%clk 00:48:22]} {[%emt 00:00:40]} Ra3 {[%clk 00:54:01]}
{[%emt 00:00:29]} 35. Kd3 {[%clk 00:48:34]} {[%emt 00:00:19]} Ra2 {[%clk
00:54:02]} {[%emt 00:00:28]} 36. Bd2 {[%clk 00:48:58]} {[%emt 00:00:06]} Ra4
{[%clk 00:53:59]} {[%emt 00:00:31]} 37. Nb4 {[%clk 00:49:01]} {[%emt 00:00:28]}
Ra7 {[%clk 00:53:17]} {[%emt 00:01:10]} 38. Kc4 {[%clk 00:48:15]} {[%emt
00:01:19]} Ra8 {[%clk 00:50:18]} {[%emt 00:03:28]} 39. Nc6 {[%clk 00:47:32]}
{[%emt 00:01:13]} Ra4+ {[%clk 00:50:17]} {[%emt 00:00:30]} 40. Kd5 {[%clk
00:47:45]} {[%emt 00:00:17]} Kf7 {[%clk 00:49:37]} {[%emt 00:01:09]} 41. Bb4
{[%clk 00:46:00]} {[%emt 00:02:18]} Ra2 {[%clk 00:49:14]} {[%emt 00:00:52]} 42.
Bc5 {[%clk 00:46:04]} {[%emt 00:00:26]} Rd2+ {[%clk 00:48:47]} {[%emt
00:00:57]} 43. Kc4 {[%clk 00:46:29]} {[%emt 00:00:05]} Rc2+ {[%clk 00:48:25]}
{[%emt 00:00:50]} 44. Kb5 {[%clk 00:46:02]} {[%emt 00:00:59]} Rb2+ {[%clk
00:47:45]} {[%emt 00:01:10]} 45. Nb4 {[%clk 00:46:04]} {[%emt 00:00:28]} Re2
{[%clk 00:46:35]} {[%emt 00:01:41]} 46. Be3 {[%clk 00:46:02]} {[%emt 00:00:32]}
Re1 {[%clk 00:45:06]} {[%emt 00:01:56]} 47. Kc6 {[%clk 00:43:57]} {[%emt
00:02:38]} Rb1 {[%clk 00:43:21]} {[%emt 00:02:15]} 1/2-1/2